Cogmind - Beta 11.1 @@@ ROGUE MODE // 2022.05.02 @ 20:13:27 Player: Perseus Result: Destroyed by YI-UF0 with YI-UF0's Doublenader Performance ------------- Evolutions (0) 0 Regions Visited (2) 400 Robots Destroyed (21) 105 Value Destroyed (327) 327 Prototype IDs (2) 40 Alien Tech Used (0) 0 Bonus (0) 0 TOTAL SCORE: 872 Bonus ------- None Cogmind --------- Core Integrity 0/250 Matter 271/300 Energy 100/100 System Corruption 0% Temperature Cool (0) Movement Core (50) Location -10/Mines Parts ------- > --- POWER (1) -------- (None) > --- PROPULSION (2) --- (None) > --- UTILITY (2) ------ Small Storage Unit Weight Redist. System > --- WEAPON (2) ------- (None) > --- INVENTORY (8) ---- Weight Redist. System Structural Scanner Grenade Launcher Datajack Mining Laser Peak State ------------ > --- POWER ------------ Ion Engine > --- PROPULSION ------- (None) > --- UTILITY ---------- Weight Redist. System Improved Terrain Scanner > --- WEAPON ----------- Small Laser Light Assault Rifle > --- INVENTORY -------- Small Storage Unit Seismic Detector Medium Laser Mining Laser [Rating: 8] Favorites ----------- Power Light Ion Engine Engine Light Ion Engine Propulsion None Utility Seismic Detector Device Seismic Detector Storage Small Storage Unit Weapon Light Assault Rifle Energy Gun Medium Laser Ballistic Gun Light Assault Rifle Launcher Grenade Launcher Special Weapon Mining Laser Build | -11 -10 -10 ------- Run | Scr Mat Min Slots Evolved . | . . . Power . | . . . Propulsion . | . . . Utility . | . . . Weapon . | . . . Parts Attached 33 | 8 18 7 Power 7 | 1 3 3 Engine 7 | 1 3 3 Core . | . . . Reactor . | . . . Propulsion . | . . . Treads . | . . . Leg . | . . . Wheel . | . . . Hover . | . . . Flight . | . . . Utility 7 | 3 4 . Device 6 | 3 3 . Storage 1 | . 1 . Processor . | . . . Hackware . | . . . Protection . | . . . Artifact . | . . . Weapon 19 | 4 11 4 Energy Gun 10 | 1 7 2 Energy Cannon . | . . . Ballistic Gun 6 | 2 3 1 Ballistic Cannon . | . . . Launcher 2 | . 1 1 Special Weapon 1 | 1 . . Impact Weapon . | . . . Slashing Weapon . | . . . Piercing Weapon . | . . . Special Melee Weapon . | . . . Unidentified Prototypes . | . . . Parts Lost 8 | . . 8 Power 4 | . . 4 Propulsion . | . . . Utility . | . . . Weapon 4 | . . 4 Highest Loss Streak 6 | . . 6 To Critical Strikes . | . . . Average Slot Usage (%) 66 | . 63 70 Engine 11 | . 10 14 Device 18 | . 21 14 Storage 9 | . 6 14 Energy Gun 11 | . 10 11 Ballistic Gun 13 | . 13 14 Launcher 1 | . . 2 Naked Turns . | . . . Heaviest Build 14 | 6 11 14 Greatest Support 9 | 3 9 9 Greatest Overweight (x) 2 | 1 2 1 Average Overweight (x) . | . . 1 Largest Inventory Capacity 8 | 5 8 8 Average Capacity 5 | 5 6 8 Most Carried 8 | 5 8 8 Average Carried 5 | 4 5 7 Final Capacity 8 | 5 8 8 Final Carried 8 | 5 8 5 Class Distribution -------------------- 100% | Mutant Dominant Class ---------------- Mutant | -10/Materials Mutant | -10/Mines Resources | -11 -10 -10 ----------- Run | Scr Mat Min Matter Collected 601 | 291 234 76 Remotely . | . . . Salvage Created 709 | 143 354 212 Parts 41 | 9 26 6 Haulers Intercepted 2 | . 2 . Recyclers Shooed 5 | 1 3 1 Parts Field Recycled . | . . . Retrieved Matter . | . . . Parts Self-Destructed . | . . . Prevented . | . . . Kills | -11 -10 -10 ------- Run | Scr Mat Min Combat Hostiles Destroyed 15 | . 8 7 Guns 8 | . 5 3 AOE 7 | . 3 4 Classes Destroyed 8 | 2 4 2 Tunneler 3 | 3 . . Hauler 2 | . 2 . Recycler 4 | 1 2 1 Watcher 1 | . 1 . Swarmer 6 | . 6 . Grunt 4 | . 2 2 Demolisher 1 | . . 1 Assembled 4 | . . 4 Best Kill Streak 4 | 3 4 4 Combat Bots Only 4 | . 4 4 Max Kills in Single Turn 2 | 1 2 2 Gunslinging . | . . . Exploded 2 | . 2 2 Melee . | . . . Uniques/NPCs Destroyed . | . . . Combat | -11 -10 -10 -------- Run | Scr Mat Min Damage Taken 912 | . 176 736 Core 257 | . 33 224 Absorbed by Shields . | . . . Core Remaining (%) 100 | 100 . . Volleys Fired 106 | 45 37 24 Largest 2 | 2 2 2 Hottest 100 | 100 70 90 Shots Fired 167 | 54 71 42 Gun 134 | 27 69 38 Cannon . | . . . Launcher 6 | . 2 4 Special 27 | 27 . . Kinetic 64 | 11 34 19 Thermal 97 | 43 35 19 Explosive 6 | . 2 4 Electromagnetic . | . . . Robot Hit Streak 7 | 6 7 5 Robot Miss Streak 5 | 4 5 3 Penetration Max . | . . . Secondary Targets . | . . . Shots Hit Robots 79 | 14 41 24 Core Hits 45 | 7 21 17 Critical Kills . | . . . Critical Parts Destroyed . | . . . Critical Strikes 4 | 3 . 1 Burn 4 | 3 . 1 Melee Attacks . | . . . Impact . | . . . Slashing . | . . . Piercing . | . . . Sneak Attacks . | . . . Combat Hostiles . | . . . Follow-up Attacks . | . . . Damage Inflicted 1097 | 158 557 382 Guns 825 | 158 395 272 Cannons . | . . . Explosions 272 | . 162 110 Melee . | . . . Ramming . | . . . Kinetic 382 | 48 200 134 Thermal 443 | 110 195 138 Explosive 272 | . 162 110 Electromagnetic . | . . . Impact . | . . . Slashing . | . . . Piercing . | . . . Highest Corruption . | . . . Average Corruption . | . . . Corruption Purged . | . . . Corruption Blocked . | . . . Overload Shots . | . . . Overflow Damage 1 | . 1 . Projectiles . | . . . Explosions 1 | . 1 . Melee . | . . . Knockbacks . | . . . Impact . | . . . Kinetic . | . . . Secondary . | . . . Self-Inflicted Damage 29 | . 29 . Shots 1 | . 1 . Rammed . | . . . Targets Rammed . | . . . Kicked . | . . . Crushed . | . . . Highest Temperature 124 | 60 80 124 Average Temperature 26 | 21 28 35 Received Heat Transfer 96 | . 12 84 Siege Activations . | . . . Robots Corrupted . | . . . Combat Hostiles . | . . . Parts Fried . | . . . Impact Corruptions . | . . . Robots Melted . | . . . Combat Hostiles . | . . . Parts Melted 1 | 1 . . Heat Transferred 1508 | 555 496 457 Parts Sabotaged . | . . . Parts Stolen . | . . . Parts Stripped . | . . . Power Chain Reactions . | . . . Missiles Intercepted . | . . . Alert | -11 -10 -10 ------- Run | Scr Mat Min Peak Influence 343 | 20 343 252 Initial 133 | . . 133 Average 50 | 2 221 196 Maximum Alert Level 1 | . 1 1 Low Security (%) 88 | 100 46 59 Level 1 11 | . 53 40 Level 2 . | . . . Level 3 . | . . . Level 4 . | . . . Level 5 . | . . . High Security . | . . . Max Security . | . . . Squads Dispatched . | . . . Investigation . | . . . Extermination . | . . . Reinforcement . | . . . Assault . | . . . Garrison . | . . . Intercept . | . . . Searches Triggered . | . . . Construction Impeded . | . . . Haulers Reinforced . | . . . Active Scanning Responses . | . . . Cargo Convoy Interrupts . | . . . Stealth | -11 -10 -10 --------- Run | Scr Mat Min Distress Signals . | . . . Communications Jammed . | . . . Distress Signals . | . . . Times Spotted 20 | . 12 8 Peak Tracking Total 4 | . 4 2 Tactical Retreats 1 | . 1 . Traps | -11 -10 -10 ------- Run | Scr Mat Min Traps Triggered 1 | . 1 . Indirectly . | . . . Trap Hack Attempts . | . . . Triggered . | . . . Disarmed . | . . . Reprogrammed . | . . . Reused . | . . . Traps Extracted . | . . . Installed . | . . . Triggered . | . . . Machines | -11 -10 -10 ---------- Run | Scr Mat Min Machines Disabled 1 | . 1 . Max in Single Turn 1 | . 1 . Machines Sabotaged . | . . . Garrisons Compromised . | . . . Overloaded Fab Kills . | . . . Hacking | -11 -10 -10 --------- Run | Scr Mat Min Machines Accessed 6 | . 6 . Terminals 5 | . 5 . Fabricators . | . . . Repair Stations . | . . . Recycling Units 1 | . 1 . Scanalyzers . | . . . Garrison Access . | . . . Total Hacks 26 | . 26 . Successful 14 | . 14 . Failed 11 | . 11 . Catastrophic 1 | . 1 . Database Lockouts 1 | . 1 . Manual 16 | . 16 . Terminals 24 | . 24 . Fabricators . | . . . Repair Stations . | . . . Recycling Units 2 | . 2 . Scanalyzers . | . . . Garrison Access . | . . . Terminal Hacks 9 | . 9 . Robot Analysis 3 | . 3 . Prototype ID Bank 1 | . 1 . Terminal Index 1 | . 1 . Locate Traps 2 | . 2 . Dispatch Records 1 | . 1 . Hauler Manifests 1 | . 1 . Fabricator Hacks . | . . . Repair Station Hacks . | . . . Recycling Unit Hacks . | . . . Scanalyzer . | . . . Garrison Access Hacks . | . . . Unauthorized Hacks 5 | . 5 . Terminals 3 | . 3 . Botnet 2 | . 2 . Operators 1 | . 1 . Fabricators . | . . . Repair Stations . | . . . Recycling Units 2 | . 2 . Reject 1 | . 1 . Recyclers 1 | . 1 . Scanalyzers . | . . . Garrison Access . | . . . Data Cores Recovered . | . . . Used . | . . . Hacking Detections 6 | . 6 . Full Trace Events . | . . . Feedback Events . | . . . Feedback Blocked . | . . . Robot Schematics Acquired . | . . . Robots Built . | . . . Authchips . | . . . Time . | . . . Total Robot Build Rating . | . . . Part Schematics Acquired . | . . . Parts Built . | . . . Authchips . | . . . Time . | . . . Total Part Build Rating . | . . . Parts Repaired . | . . . Time . | . . . Parts Recycled . | . . . Recycled Matter . | . . . Retrieved Matter . | . . . Retrieved Components . | . . . Parts Scanalyzed . | . . . Part Schematics Acquired . | . . . Parts Damaged . | . . . Bothacking | -11 -10 -10 ------------ Run | Scr Mat Min Used RIF Installer . | . . . Robots Hacked . | . . . Non-combat . | . . . Combat . | . . . Robot Hacks Applied . | . . . Relay Couplers Released . | . . . Fabnet Peak Effective % . | . . . Robots Rewired . | . . . Allies Hacked . | . . . Hacks Repelled . | . . . Allies | -11 -10 -10 -------- Run | Scr Mat Min Total Allies . | . . . Largest Group . | . . . Highest-Rated Group . | . . . Highest-Rated Ally . | . . . Total Orders . | . . . Ally Attacks . | . . . Total Damage . | . . . Kills . | . . . Allies Corrupted . | . . . Allies Melted . | . . . Intel | -11 -10 -10 ------- Run | Scr Mat Min Robot Analysis Total 3 | . 3 . Derelict Logs Recovered . | . . . Drone Launches . | . . . Drone Recoveries . | . . . Exploration | -11 -10 -10 ------------- Run | Scr Mat Min Turns Passed 2682 | 2068 353 261 Spaces Moved 2056 | 1600 280 176 Core 2056 | 1600 280 176 Treads . | . . . Legs . | . . . Wheels . | . . . Hover . | . . . Flight . | . . . Fastest Speed 50 | 50 50 100 Average Speed 94 | 98 64 100 Slowest Speed 150 | 100 150 100 Overloaded Moves . | . . . Propulsion Burnouts . | . . . Robots Hopped . | . . . Cave-ins Triggered . | . . . Exploration Rate (%) 55 | 81 48 36 Regions Visited 2 Branch Regions 1 Pre-discovered Areas . | . . . Known Exits Taken . | . . . Unknown Exits Taken 2 | 1 1 . Scrap Searched . | . . . Spaces Dug 11 | 11 . . Terrain Destroyed 39 | 12 10 17 Melee . | . . . Projectile 12 | 12 . . AOE 27 | . 10 17 Terrain Rammed . | . . . Walls Destroyed . | . . . Machines Disabled . | . . . Actions | -11 -10 -10 --------- Run | Scr Mat Min Total 2594 | 1981 391 222 Wait 364 | 319 32 13 Move 2054 | 1599 279 176 Hop . | . . . Pick Up 19 | 7 10 2 Fast Attach 5 | 2 3 . Attach 18 | 4 9 5 Detach 8 | 2 6 . Swap 10 | 2 6 2 Drop 10 | 1 9 . Fire 106 | 45 37 24 Melee . | . . . Ram . | . . . Kick . | . . . Crush . | . . . Escape Stasis . | . . . Rewire . | . . . Trap . | . . . Miscellaneous . | . . . Route ------- -11/Scrapyard -10/Materials -10/Mines (discovered 1 exit: [*Mat]) History --------- Turn | Location | Event 2 | -11/Scrapyard | Met Revision 17 3 | -11/Scrapyard | Discovered new exit (range 16) 1978 | -11/Scrapyard | Assembled infested the area 2069 | -11/Scrapyard | Entered Materials 2090 | -10/Materials | Build established: Mutant 2222 | -10/Materials | Central database locked down 2232 | -10/Materials | Discovered new exit (range 8) 2422 | -10/Materials | Entered Mines 2496 | -10/Mines | Assembled infested the area 2628 | -10/Mines | Discovered new exit (range 14) 2667 | -10/Mines | Core integrity fell below 50% 2678 | -10/Mines | Core integrity fell below 20% 2683 | -10/Mines | Destroyed by YI-UF0 with YI-UF0's Doublenader Last Messages --------------- 02662_ Lgt. Assault Rifle destroyed. 02663_ K-01 Serf collects debris. 02664_ Ion Engine destroyed. 02665_ The unstable cave ceiling collapses. 02666_ Med. Laser destroyed. 02666_ K-01 Serf collects debris. 02672_ The unstable cave ceiling collapses. 02672_ Destroyed Shock Absorption System. 02674_ YI-UF0 mumbles something. 02674_ The unstable cave ceiling collapses. 02674_ K-01 Serf collects debris. 02675_ The unstable cave ceiling collapses. 02677_ K-01 Serf collects debris. 02679_ Sml. Laser destroyed. 02680_ The unstable cave ceiling collapses. 02681_ K-01 Serf collects debris. 02683_ YI-UF0 mumbles something. 02683_ The unstable cave ceiling collapses. 02683_ Lgt. Deuterium Engine destroyed. 02683_ Assault Rifle destroyed. Map ----- +----------------------------------------------------+ | ????????????# #?? ##? | | ????????????# #? #? | | ????????????## ##?# #? | | ???????????### #??# #?? | | ???????????# #### #??? | | ?????????### #??? | | ?????????# ##??? | | ????????## # #??? | | ????????# ##??? | | ????????# # ##?? | | ????????# # # < #?? | | ????????# ### #?? | | ???????? ???# #? | | ????????????#### # #? | | ???????????????#### k #? | | ??????????????????## ## | | ???????????????????# # | | ???????????????????## # | | ????????????????????## | | ?????????????????????## | | ??????????????????????# # | | ?????????????????????### ? | | ????????????????????## #? | | ???????????????????## #? | | ??????????????????## # #?? | | ??????????????????# @ #? | | ??????????????????# #? | | ?????????????? g #? | | ???????????# #? | | ??????????? #? | | ???????????? !=* ###? | | ???????????? ##??? | | ????????????# ##???? | | ????????????? ## ## #????? | | ???????????????## ?## ????? | | ????????????????######???# ????? | | ??????????????????????????# ????? | | ??????????????????????????? ????? | | ??????????????????????????? ????? | | ??????????????????????????? ????? | | ????????????????????????????????? | | ????????????????????????????????? | | ????????????????????????????????? | | ????????????????????????????????? | | ????????????????????????????????? | | ????????????????????????????????? | | ????????????????????????????????? | | ????????????????????????????????? | | | | | +----------------------------------------------------+ Best States ------------- Heat Dissipation 25 Energy Generation 14 Energy Capacity 250 Matter Stores 300 Matter Capacity 300 Sight Range 16 Terrain Scan Range 16 Terrain Scan Density 10 Additional Mass Support 6 Evasion (%) 50 Item Schematics ----------------- None Robot Schematics ------------------ None Fabricated ------------ Nothing Alien Tech Used ----------------- None Achievements -------------- Curiosity Killed The Cat Challenges ------------ None Game ------ Seed GuidanceSuspensionHammer Manual? 0 Play Time 00:25:57 Cumulative 471.1 hours Start 2022.05.02 @ 19:47:44 End 2022.05.02 @ 20:13:27 Sessions 1 Manual Loads 0 Difficulty Rogue Special Mode None Game No. 112 Rogue 89 Adventurer 23 Explorer 0 Win Type - Total 19 Types 14/0/2/1/1/0/0/1/0 Lore% 89 Gallery% 89 Achievement% 80 Wizard Run 0 Options --------- ASCII 0 Keyboard 0 Movement Mouse Keybinds 0 Fullscreen 1 Font 18/SmallcapsGlow Map View 76x50 Tactical HUD 1 Map Filters NONE Filters NONE Steam 1 RUN: 27db5469-6b10-44e0-9667-411f6d9aceee